[Event "Live Chess"]
[Site "Chess.com"]
[Date "2023.05.20"]
[Round "-"]
[White "Ayursworld"]
[Black "tuppyglossop"]
[Result "0-1"]
[WhiteElo "1369"]
[BlackElo "1597"]
[TimeControl "300"]
[EndTime "11:59:53 PDT"]
[Termination "tuppyglossop won by checkmate"]

1. e4 {[%clk 0:04:58.9]} 1... c5 {[%clk 0:04:56.7]} 2. Nf3 {[%clk 0:04:54.7]}
2... d6 {[%clk 0:04:55.4]} 3. c4 {[%clk 0:04:52.6]} 3... Nf6 {[%clk 0:04:53.5]}
4. d3 {[%clk 0:04:51.7]} 4... Nc6 {[%clk 0:04:52]} 5. Nc3 {[%clk 0:04:50.5]}
5... a6 {[%clk 0:04:50.9]} 6. Bg5 {[%clk 0:04:49.2]} 6... h6 {[%clk 0:04:45.9]}
7. Bxf6 {[%clk 0:04:48.3]} 7... gxf6 {[%clk 0:04:44.9]} 8. Be2 {[%clk 0:04:47]}
8... Bg7 {[%clk 0:04:41.6]} 9. Qd2 {[%clk 0:04:45.7]} 9... Bg4 {[%clk
0:04:38.6]} 10. h3 {[%clk 0:04:44.5]} 10... Bxf3 {[%clk 0:04:35.7]} 11. Bxf3
{[%clk 0:04:42.9]} 11... Qd7 {[%clk 0:04:31.2]} 12. Bg4 {[%clk 0:04:39.9]} 12...
e6 {[%clk 0:04:27]} 13. O-O-O {[%clk 0:04:36.6]} 13... Qc7 {[%clk 0:04:17.1]}
14. a3 {[%clk 0:04:31.2]} 14... Nd4 {[%clk 0:04:13.4]} 15. Bf3 {[%clk 0:04:26]}
15... Nb3+ {[%clk 0:04:11.4]} 16. Kc2 {[%clk 0:04:24.4]} 16... Nxd2 {[%clk
0:04:11.3]} 17. Kxd2 {[%clk 0:04:23.3]} 17... Rb8 {[%clk 0:04:02.2]} 18. Kc2
{[%clk 0:04:21.4]} 18... b5 {[%clk 0:04:00.5]} 19. cxb5 {[%clk 0:04:19.5]} 19...
axb5 {[%clk 0:04:00.4]} 20. Na2 {[%clk 0:04:18.2]} 20... b4 {[%clk 0:03:57.9]}
21. axb4 {[%clk 0:04:16]} 21... cxb4+ {[%clk 0:03:56.2]} 22. Kb3 {[%clk
0:04:14.3]} 22... O-O {[%clk 0:03:43.8]} 23. Rc1 {[%clk 0:04:12]} 23... Qb6
{[%clk 0:03:42.2]} 24. Rhf1 {[%clk 0:04:07.4]} 24... Rfc8 {[%clk 0:03:38.7]} 25.
Rxc8+ {[%clk 0:04:03.9]} 25... Rxc8 {[%clk 0:03:37.5]} 26. Be2 {[%clk
0:03:57.9]} 26... f5 {[%clk 0:03:33.6]} 27. exf5 {[%clk 0:03:55.7]} 27... exf5
{[%clk 0:03:29.7]} 28. f3 {[%clk 0:03:54.5]} 28... Qd4 {[%clk 0:03:28.1]} 29.
Rc1 {[%clk 0:03:50.9]} 29... Qxb2+ {[%clk 0:03:24.8]} 30. Ka4 {[%clk 0:03:47.8]}
30... Qxa2+ {[%clk 0:03:20.9]} 31. Kxb4 {[%clk 0:03:46.9]} 31... Rxc1 {[%clk
0:03:17.2]} 32. Kb5 {[%clk 0:03:42.1]} 32... Qb2+ {[%clk 0:03:15.8]} 33. Ka4
{[%clk 0:03:40.9]} 33... Ra1# {[%clk 0:03:14.6]} 0-1

[Event "Live Chess"]
[Site "Chess.com"]
[Date "2023.05.20"]
[Round "-"]
[White "KGreenGator"]
[Black "maxwalden"]
[Result "1-0"]
[WhiteElo "1774"]
[BlackElo "1210"]
[TimeControl "300"]
[EndTime "11:59:55 PDT"]
[Termination "KGreenGator won by checkmate"]

1. c4 {[%clk 0:04:58.6]} 1... c5 {[%clk 0:04:58.5]} 2. Nc3 {[%clk 0:04:57.7]}
2... g6 {[%clk 0:04:57.8]} 3. e3 {[%clk 0:04:57.1]} 3... Bg7 {[%clk 0:04:57.1]}
4. d4 {[%clk 0:04:56.5]} 4... cxd4 {[%clk 0:04:55.3]} 5. exd4 {[%clk 0:04:56]}
5... Nf6 {[%clk 0:04:54.2]} 6. Nf3 {[%clk 0:04:55.2]} 6... O-O {[%clk
0:04:52.8]} 7. Be2 {[%clk 0:04:54]} 7... d6 {[%clk 0:04:52.1]} 8. O-O {[%clk
0:04:53.5]} 8... Nc6 {[%clk 0:04:51.3]} 9. Re1 {[%clk 0:04:52.8]} 9... a6 {[%clk
0:04:49.5]} 10. d5 {[%clk 0:04:52.1]} 10... Nb4 {[%clk 0:04:43.8]} 11. a3 {[%clk
0:04:50]} 11... Nbxd5 {[%clk 0:04:40.2]} 12. cxd5 {[%clk 0:04:48.7]} 12... Bf5
{[%clk 0:04:37.3]} 13. Be3 {[%clk 0:04:45.3]} 13... b5 {[%clk 0:04:30.8]} 14.
Nd4 {[%clk 0:04:43.3]} 14... Bd7 {[%clk 0:04:26.3]} 15. b4 {[%clk 0:04:40.8]}
15... a5 {[%clk 0:04:23.7]} 16. Qb3 {[%clk 0:04:38.4]} 16... a4 {[%clk
0:04:21.7]} 17. Qb2 {[%clk 0:04:37]} 17... Qc7 {[%clk 0:04:19.5]} 18. Bxb5
{[%clk 0:04:33.3]} 18... Bxb5 {[%clk 0:04:13.5]} 19. Ndxb5 {[%clk 0:04:28.9]}
19... Qb7 {[%clk 0:04:12.1]} 20. Rad1 {[%clk 0:04:25.4]} 20... Ne4 {[%clk
0:03:58.3]} 21. Qc2 {[%clk 0:04:21.2]} 21... Nxc3 {[%clk 0:03:54.2]} 22. Nxc3
{[%clk 0:04:20.2]} 22... Bxc3 {[%clk 0:03:52.4]} 23. Qxc3 {[%clk 0:04:18.9]}
23... Rfc8 {[%clk 0:03:51.1]} 24. Qb2 {[%clk 0:04:17.6]} 24... f6 {[%clk
0:03:48.6]} 25. Bh6 {[%clk 0:04:12.2]} 25... Rc4 {[%clk 0:03:37]} 26. h3 {[%clk
0:04:10.8]} 26... Rac8 {[%clk 0:03:35.7]} 27. Re6 {[%clk 0:04:07.8]} 27... Rc2
{[%clk 0:03:30.8]} 28. Qd4 {[%clk 0:04:02.3]} 28... R2c4 {[%clk 0:03:21.5]} 29.
Qe3 {[%clk 0:04:00.9]} 29... Rc3 {[%clk 0:03:17]} 30. Qe2 {[%clk 0:03:58.3]}
30... Rc2 {[%clk 0:03:16.1]} 31. Qe1 {[%clk 0:03:57.1]} 31... Ra2 {[%clk
0:03:11.6]} 32. Rxe7 {[%clk 0:03:56.2]} 32... Qb5 {[%clk 0:03:06.4]} 33. Rg7+
{[%clk 0:03:50.3]} 33... Kh8 {[%clk 0:03:05.6]} 34. Rc1 {[%clk 0:03:44]} 34...
Rxc1 {[%clk 0:02:58.1]} 35. Qxc1 {[%clk 0:03:42.6]} 35... Rxf2 {[%clk
0:02:47.6]} 36. Qc8+ {[%clk 0:03:41]} 36... Qe8 {[%clk 0:02:45.8]} 37. Qxe8#
{[%clk 0:03:40.6]} 1-0

[Event "Live Chess"]
[Site "Chess.com"]
[Date "2023.05.20"]
[Round "-"]
[White "viktorskliarov"]
[Black "worldchessleaguelive"]
[Result "1-0"]
[WhiteElo "2650"]
[BlackElo "1357"]
[TimeControl "300"]
[EndTime "11:59:56 PDT"]
[Termination "viktorskliarov won on time"]

1. e4 {[%clk 0:04:55.9]} 1... d5 {[%clk 0:04:58.4]} 2. exd5 {[%clk 0:04:51]}
2... Qxd5 {[%clk 0:04:55.8]} 3. Nc3 {[%clk 0:04:49.8]} 3... Qd8 {[%clk
0:04:50.7]} 4. d4 {[%clk 0:04:47.6]} 4... Nf6 {[%clk 0:04:38.9]} 5. Bc4 {[%clk
0:04:42.5]} 5... e6 {[%clk 0:04:31.1]} 6. Nf3 {[%clk 0:04:41.2]} 6... Be7 {[%clk
0:04:22.2]} 7. O-O {[%clk 0:04:38.7]} 7... Nbd7 {[%clk 0:04:14.8]} 8. d5 {[%clk
0:04:29.6]} 8... exd5 {[%clk 0:04:09.6]} 9. Nxd5 {[%clk 0:04:28.5]} 9... Nxd5
{[%clk 0:04:08.3]} 10. Qxd5 {[%clk 0:04:27]} 10... O-O {[%clk 0:04:05.8]} 11.
Qh5 {[%clk 0:04:19.3]} 11... Nf6 {[%clk 0:03:58.5]} 12. Qh4 {[%clk 0:04:15.9]}
12... Bg4 {[%clk 0:03:45.1]} 13. Ne5 {[%clk 0:03:57.8]} 13... Be6 {[%clk
0:02:46.2]} 14. Bxe6 {[%clk 0:03:53.2]} 14... fxe6 {[%clk 0:02:44.7]} 15. Qh3
{[%clk 0:03:30.4]} 15... Qd5 {[%clk 0:02:34.5]} 16. Bf4 {[%clk 0:03:26.2]} 16...
Rae8 {[%clk 0:02:22.8]} 17. Rfd1 {[%clk 0:03:22.2]} 17... Qe4 {[%clk 0:01:51.3]}
18. Qxe6+ {[%clk 0:03:18.9]} 18... Kh8 {[%clk 0:01:50.1]} 19. Nf7+ {[%clk
0:02:52.6]} 19... Rxf7 {[%clk 0:01:48]} 20. Qxf7 {[%clk 0:02:51.2]} 20... Qxf4
{[%clk 0:01:44.7]} 21. g3 {[%clk 0:01:49.3]} 21... Qb4 {[%clk 0:01:19.5]} 22.
Re1 {[%clk 0:01:40.6]} 22... b6 {[%clk 0:00:51]} 23. Rad1 {[%clk 0:01:34.3]}
23... h6 {[%clk 0:00:18.3]} 24. a3 {[%clk 0:01:27.2]} 24... Qc5 {[%clk
0:00:12.8]} 25. b4 {[%clk 0:01:23.9]} 25... Rf8 {[%clk 0:00:04.3]} 26. Qxe7
{[%clk 0:01:20.8]} 26... Qxe7 {[%clk 0:00:03.2]} 27. Rxe7 {[%clk 0:01:19.2]}
27... Re8 {[%clk 0:00:00.6]} 28. Rxe8+ {[%clk 0:01:17.9]} 28... Nxe8 {[%clk
0:00:00.1]} 29. Rd8 {[%clk 0:01:14.2]} 1-0

[Event "Live Chess"]
[Site "Chess.com"]
[Date "2023.05.20"]
[Round "-"]
[White "tomdot"]
[Black "rmethornhill"]
[Result "0-1"]
[WhiteElo "223"]
[BlackElo "1188"]
[TimeControl "300"]
[EndTime "11:59:56 PDT"]
[Termination "rmethornhill won by checkmate"]

1. e4 {[%clk 0:04:56.5]} 1... c5 {[%clk 0:04:58]} 2. Nf3 {[%clk 0:04:52.2]} 2...
d6 {[%clk 0:04:56.8]} 3. Nc3 {[%clk 0:04:48.4]} 3... Nc6 {[%clk 0:04:53.8]} 4.
d3 {[%clk 0:04:43.4]} 4... g6 {[%clk 0:04:51.2]} 5. Bf4 {[%clk 0:04:39.3]} 5...
Bg7 {[%clk 0:04:49.5]} 6. Be2 {[%clk 0:04:27]} 6... Nf6 {[%clk 0:04:47.4]} 7.
O-O {[%clk 0:04:25.7]} 7... O-O {[%clk 0:04:46]} 8. Qd2 {[%clk 0:04:17.1]} 8...
Nh5 {[%clk 0:04:41.8]} 9. h3 {[%clk 0:04:03.1]} 9... Nxf4 {[%clk 0:04:39.9]} 10.
Qxf4 {[%clk 0:03:51.9]} 10... e6 {[%clk 0:04:35.1]} 11. Ng5 {[%clk 0:03:43.9]}
11... Nd4 {[%clk 0:04:18.2]} 12. Bg4 {[%clk 0:03:22.3]} 12... f5 {[%clk
0:04:04]} 13. exf5 {[%clk 0:03:04.3]} 13... Nxf5 {[%clk 0:03:53.4]} 14. Bxf5
{[%clk 0:02:59]} 14... Rxf5 {[%clk 0:03:51.8]} 15. Qg4 {[%clk 0:02:40.5]} 15...
Rxg5 {[%clk 0:03:47.8]} 16. Qe4 {[%clk 0:02:17.1]} 16... d5 {[%clk 0:03:11.4]}
17. Qa4 {[%clk 0:01:55.2]} 17... Bd7 {[%clk 0:03:03.6]} 18. Nb5 {[%clk
0:01:46.7]} 18... a6 {[%clk 0:02:57.7]} 19. Qa5 {[%clk 0:01:33.4]} 19... Qxa5
{[%clk 0:02:55.5]} 20. h4 {[%clk 0:01:17]} 20... Re5 {[%clk 0:02:46.5]} 21. d4
{[%clk 0:01:09.6]} 21... Re2 {[%clk 0:02:44.9]} 22. dxc5 {[%clk 0:01:01.7]}
22... Qxb5 {[%clk 0:02:42.7]} 23. a4 {[%clk 0:00:49.6]} 23... Qxc5 {[%clk
0:02:41.1]} 24. b4 {[%clk 0:00:41.6]} 24... Qxc2 {[%clk 0:02:30.3]} 25. b5
{[%clk 0:00:38.8]} 25... Rf8 {[%clk 0:02:24.2]} 26. bxa6 {[%clk 0:00:37.1]}
26... bxa6 {[%clk 0:02:22.9]} 27. a5 {[%clk 0:00:35.5]} 27... Rexf2 {[%clk
0:02:18.2]} 28. Rae1 {[%clk 0:00:26.5]} 28... Rxf1+ {[%clk 0:02:15.3]} 29. Rxf1
{[%clk 0:00:22.9]} 29... Bd4+ {[%clk 0:02:13.8]} 30. Kh1 {[%clk 0:00:21.1]}
30... Rxf1+ {[%clk 0:02:12.5]} 31. Kh2 {[%clk 0:00:19.8]} 31... Be5+ {[%clk
0:02:10.3]} 32. Kh3 {[%clk 0:00:18]} 32... Qd3+ {[%clk 0:02:06.1]} 33. Kg4
{[%clk 0:00:16.9]} 33... Rf4+ {[%clk 0:02:02.6]} 34. Kg5 {[%clk 0:00:16]} 34...
Qf5+ {[%clk 0:02:00.2]} 35. Kh6 {[%clk 0:00:14.4]} 35... Bg7# {[%clk 0:01:57.5]}
0-1

[Event "Live Chess"]
[Site "Chess.com"]
[Date "2023.05.20"]
[Round "-"]
[White "GMHarry-youtube"]
[Black "TobyQuaite"]
[Result "1-0"]
[WhiteElo "2126"]
[BlackElo "1685"]
[TimeControl "300"]
[EndTime "11:59:56 PDT"]
[Termination "GMHarry-youtube won by checkmate"]

1. e4 {[%clk 0:04:55.7]} 1... e6 {[%clk 0:04:59]} 2. d4 {[%clk 0:04:53.7]} 2...
d5 {[%clk 0:04:58.6]} 3. e5 {[%clk 0:04:52.6]} 3... c5 {[%clk 0:04:57.1]} 4. c3
{[%clk 0:04:52.3]} 4... Nc6 {[%clk 0:04:56.4]} 5. Nf3 {[%clk 0:04:50.3]} 5...
Qb6 {[%clk 0:04:56]} 6. Bd3 {[%clk 0:04:48.8]} 6... cxd4 {[%clk 0:04:54.8]} 7.
O-O {[%clk 0:04:40.2]} 7... dxc3 {[%clk 0:04:42.5]} 8. Nxc3 {[%clk 0:04:37.7]}
8... Bd7 {[%clk 0:04:42]} 9. Re1 {[%clk 0:04:35.7]} 9... Nge7 {[%clk 0:04:40.5]}
10. h4 {[%clk 0:04:33.3]} 10... g6 {[%clk 0:04:31.4]} 11. Bg5 {[%clk 0:04:23.3]}
11... h6 {[%clk 0:04:24.8]} 12. Bf6 {[%clk 0:04:21.2]} 12... Rg8 {[%clk
0:04:16]} 13. Na4 {[%clk 0:04:09]} 13... Qc7 {[%clk 0:04:08.9]} 14. Nc3 {[%clk
0:04:02.1]} 14... Bg7 {[%clk 0:03:51.5]} 15. Nb5 {[%clk 0:04:00.5]} 15... Qb6
{[%clk 0:03:42]} 16. Nd6+ {[%clk 0:03:58.3]} 16... Kf8 {[%clk 0:03:38.3]} 17.
Qd2 {[%clk 0:03:56]} 17... h5 {[%clk 0:03:25.3]} 18. Ng5 {[%clk 0:03:52]} 18...
Nd8 {[%clk 0:03:03.9]} 19. Nh7# {[%clk 0:03:49.7]} 1-0

[Event "Live Chess"]
[Site "Chess.com"]
[Date "2023.05.20"]
[Round "-"]
[White "Albul"]
[Black "BillythekidFellowes"]
[Result "0-1"]
[WhiteElo "2151"]
[BlackElo "2038"]
[TimeControl "300"]
[EndTime "11:59:59 PDT"]
[Termination "BillythekidFellowes won by resignation"]

1. e4 {[%clk 0:04:56.5]} 1... Nc6 {[%clk 0:04:58.5]} 2. Bc4 {[%clk 0:04:52.3]}
2... e6 {[%clk 0:04:50.1]} 3. d3 {[%clk 0:04:50.6]} 3... d5 {[%clk 0:04:47.7]}
4. exd5 {[%clk 0:04:49.2]} 4... exd5 {[%clk 0:04:47.6]} 5. Qe2+ {[%clk
0:04:48.6]} 5... Be6 {[%clk 0:04:35.5]} 6. Bb5 {[%clk 0:04:47.5]} 6... Ne7
{[%clk 0:04:13.3]} 7. Nf3 {[%clk 0:04:41.4]} 7... Nc8 {[%clk 0:04:05.3]} 8. Nd4
{[%clk 0:04:31.4]} 8... Qd6 {[%clk 0:04:01.1]} 9. O-O {[%clk 0:04:01.1]} 9...
Be7 {[%clk 0:03:49.4]} 10. Bf4 {[%clk 0:03:43.6]} 10... Qxf4 {[%clk 0:03:34.2]}
11. Nxc6 {[%clk 0:03:42.1]} 11... O-O {[%clk 0:03:31.1]} 12. Nxe7+ {[%clk
0:03:36]} 12... Nxe7 {[%clk 0:03:25.7]} 13. Nd2 {[%clk 0:03:27]} 13... c6 {[%clk
0:03:21.6]} 14. Ba4 {[%clk 0:03:25.5]} 14... Qxa4 {[%clk 0:03:18.9]} 0-1

[Event "Live Chess"]
[Site "Chess.com"]
[Date "2023.05.20"]
[Round "-"]
[White "MJMykh"]
[Black "CeladonFish"]
[Result "1-0"]
[WhiteElo "1075"]
[BlackElo "1063"]
[TimeControl "300"]
[EndTime "12:00:19 PDT"]
[Termination "MJMykh won by checkmate"]

1. e4 {[%clk 0:04:56]} 1... d6 {[%clk 0:04:59.5]} 2. Nf3 {[%clk 0:04:54.7]} 2...
Nf6 {[%clk 0:04:59.2]} 3. Nc3 {[%clk 0:04:53.4]} 3... g6 {[%clk 0:04:58.8]} 4.
Bc4 {[%clk 0:04:50.9]} 4... Bg7 {[%clk 0:04:58.4]} 5. Ng5 {[%clk 0:04:49.8]}
5... e6 {[%clk 0:04:53.5]} 6. Nf3 {[%clk 0:04:45]} 6... c6 {[%clk 0:04:51.9]} 7.
O-O {[%clk 0:04:41.3]} 7... d5 {[%clk 0:04:51.2]} 8. exd5 {[%clk 0:04:40.2]}
8... cxd5 {[%clk 0:04:50.6]} 9. Bb5+ {[%clk 0:04:38.9]} 9... Nc6 {[%clk
0:04:48.3]} 10. Bxc6+ {[%clk 0:04:38]} 10... bxc6 {[%clk 0:04:47.3]} 11. d3
{[%clk 0:04:37.1]} 11... O-O {[%clk 0:04:46]} 12. Bg5 {[%clk 0:04:36.4]} 12...
Re8 {[%clk 0:04:42.5]} 13. Ne5 {[%clk 0:04:34.6]} 13... Qd6 {[%clk 0:04:33.1]}
14. Bxf6 {[%clk 0:04:26.5]} 14... Bxf6 {[%clk 0:04:31.8]} 15. Ng4 {[%clk
0:04:25.1]} 15... Bxc3 {[%clk 0:04:30.2]} 16. bxc3 {[%clk 0:04:23.6]} 16... e5
{[%clk 0:04:29.4]} 17. Nh6+ {[%clk 0:04:17.7]} 17... Kg7 {[%clk 0:04:28.2]} 18.
Ng4 {[%clk 0:04:16.2]} 18... Qd7 {[%clk 0:04:23.4]} 19. h3 {[%clk 0:04:13.2]}
19... h5 {[%clk 0:04:22]} 20. Nxe5 {[%clk 0:04:09]} 20... Qe6 {[%clk 0:04:20.3]}
21. d4 {[%clk 0:04:06.1]} 21... c5 {[%clk 0:04:17.6]} 22. Qd3 {[%clk 0:04:02.4]}
22... Qf5 {[%clk 0:04:10.6]} 23. Qxf5 {[%clk 0:03:59.8]} 23... gxf5 {[%clk
0:04:10.2]} 24. Nf3 {[%clk 0:03:51.4]} 24... Ba6 {[%clk 0:04:09.3]} 25. Rfe1
{[%clk 0:03:47.1]} 25... cxd4 {[%clk 0:04:05.6]} 26. Rxe8 {[%clk 0:03:45.5]}
26... Rxe8 {[%clk 0:04:05.2]} 27. Nxd4 {[%clk 0:03:44.5]} 27... Bc4 {[%clk
0:04:00.6]} 28. Nxf5+ {[%clk 0:03:42.3]} 28... Kf6 {[%clk 0:04:00.5]} 29. Nd4
{[%clk 0:03:40.2]} 29... Re7 {[%clk 0:03:56.3]} 30. Nc6 {[%clk 0:03:35.8]} 30...
Rc7 {[%clk 0:03:52.9]} 31. Nd4 {[%clk 0:03:32.9]} 31... Ke5 {[%clk 0:03:51.6]}
32. Nf3+ {[%clk 0:03:31.1]} 32... Ke4 {[%clk 0:03:50.6]} 33. Re1+ {[%clk
0:03:24.2]} 33... Kf4 {[%clk 0:03:48.8]} 34. a3 {[%clk 0:03:14.8]} 34... a5
{[%clk 0:03:43.3]} 35. Nd4 {[%clk 0:03:13.5]} 35... a4 {[%clk 0:03:37.5]} 36.
g3+ {[%clk 0:03:09.5]} 36... Kg5 {[%clk 0:03:34.7]} 37. h4+ {[%clk 0:03:08.3]}
37... Kg4 {[%clk 0:03:33.4]} 38. Kg2 {[%clk 0:03:06.9]} 38... f5 {[%clk
0:03:30.4]} 39. f3# {[%clk 0:03:05.5]} 1-0

[Event "Live Chess"]
[Site "Chess.com"]
[Date "2023.05.20"]
[Round "-"]
[White "Olisingapore"]
[Black "Conradical12"]
[Result "0-1"]
[WhiteElo "1904"]
[BlackElo "1541"]
[TimeControl "300"]
[EndTime "12:00:21 PDT"]
[Termination "Conradical12 won on time"]

1. d4 {[%clk 0:04:51.6]} 1... d5 {[%clk 0:04:58]} 2. c4 {[%clk 0:04:51]} 2...
Nf6 {[%clk 0:04:53.4]} 3. cxd5 {[%clk 0:04:48]} 3... Nxd5 {[%clk 0:04:52]} 4.
Nf3 {[%clk 0:04:46.4]} 4... Bg4 {[%clk 0:04:50.4]} 5. e4 {[%clk 0:04:42.1]} 5...
Bxf3 {[%clk 0:04:48.7]} 6. Qxf3 {[%clk 0:04:40.2]} 6... Nb4 {[%clk 0:04:46.6]}
7. Bc4 {[%clk 0:04:33.7]} 7... Qxd4 {[%clk 0:04:40.3]} 8. Qxf7+ {[%clk
0:04:24.7]} 8... Kd8 {[%clk 0:04:39.1]} 9. O-O {[%clk 0:04:02]} 9... Nc2 {[%clk
0:04:35.4]} 10. Nc3 {[%clk 0:03:53.3]} 10... Nxa1 {[%clk 0:04:33.4]} 11. Rd1
{[%clk 0:03:50.8]} 11... Qxd1+ {[%clk 0:04:30.4]} 12. Nxd1 {[%clk 0:03:47.6]}
12... Nd7 {[%clk 0:04:28.6]} 13. Be6 {[%clk 0:03:18.8]} 13... Nc2 {[%clk
0:04:26.1]} 14. Bh3 {[%clk 0:03:13.7]} 14... Nd4 {[%clk 0:04:23.6]} 15. Qd5
{[%clk 0:03:12]} 15... e6 {[%clk 0:04:09.4]} 16. Qxd4 {[%clk 0:03:07.4]} 16...
Bd6 {[%clk 0:04:01.2]} 17. e5 {[%clk 0:03:00.3]} 17... Nxe5 {[%clk 0:03:58.9]}
18. Bg5+ {[%clk 0:02:52.2]} 18... Kd7 {[%clk 0:03:56.4]} 19. Qa4+ {[%clk
0:02:40.3]} 19... c6 {[%clk 0:03:53.8]} 20. Qb3 {[%clk 0:02:34]} 20... Rae8
{[%clk 0:03:50.9]} 21. Qxb7+ {[%clk 0:02:31.4]} 21... Bc7 {[%clk 0:03:48.8]} 22.
Bf4 {[%clk 0:02:25.3]} 22... Rb8 {[%clk 0:03:43.9]} 23. Qxa7 {[%clk 0:02:17.8]}
23... Rhd8 {[%clk 0:03:40]} 24. Qd4+ {[%clk 0:02:08.4]} 24... Ke8 {[%clk
0:03:38.8]} 25. Qa4 {[%clk 0:01:50.5]} 25... Rb4 {[%clk 0:03:28.5]} 26. Qc2
{[%clk 0:01:45.6]} 26... Rxf4 {[%clk 0:03:19.9]} 27. Bxe6 {[%clk 0:01:44.2]}
27... Re4 {[%clk 0:03:07.1]} 28. Ne3 {[%clk 0:01:37.5]} 28... Red4 {[%clk
0:02:44.7]} 29. g3 {[%clk 0:01:24.3]} 29... Nf3+ {[%clk 0:02:42.8]} 30. Kf1
{[%clk 0:01:20.8]} 30... R8d6 {[%clk 0:02:01.1]} 31. Qf5 {[%clk 0:00:59.9]}
31... Ng5 {[%clk 0:01:16.2]} 32. Qxg5 {[%clk 0:00:46.5]} 32... Rxe6 {[%clk
0:01:14.6]} 33. Qh5+ {[%clk 0:00:33.4]} 33... Kf8 {[%clk 0:01:07.4]} 34. Qf5+
{[%clk 0:00:30.4]} 34... Rf6 {[%clk 0:01:04.4]} 35. Qc8+ {[%clk 0:00:29]} 35...
Kf7 {[%clk 0:01:02.1]} 36. Qxc7+ {[%clk 0:00:27.6]} 36... Kg6 {[%clk 0:01:01.1]}
37. Qxc6 {[%clk 0:00:25.9]} 37... Rxc6 {[%clk 0:00:59.1]} 38. b3 {[%clk
0:00:23.3]} 38... Rd2 {[%clk 0:00:54.9]} 39. Nc4 {[%clk 0:00:18.8]} 39... Rxa2
{[%clk 0:00:50.3]} 40. Ne5+ {[%clk 0:00:17.6]} 40... Kf5 {[%clk 0:00:48]} 41.
Nxc6 {[%clk 0:00:17.5]} 41... Rb2 {[%clk 0:00:46.4]} 42. Nd4+ {[%clk 0:00:16.7]}
42... Ke4 {[%clk 0:00:44.2]} 43. Ne2 {[%clk 0:00:15.1]} 43... Kd3 {[%clk
0:00:41.5]} 44. Nc1+ {[%clk 0:00:13.3]} 44... Kc3 {[%clk 0:00:39]} 45. Ne2+
{[%clk 0:00:12.8]} 45... Kxb3 {[%clk 0:00:37.4]} 46. Nd4+ {[%clk 0:00:12.3]}
46... Kc4 {[%clk 0:00:34.8]} 47. Nc6 {[%clk 0:00:10.3]} 47... Kc5 {[%clk
0:00:33.6]} 48. Na5 {[%clk 0:00:09]} 48... Kd5 {[%clk 0:00:31.3]} 49. Kg2 {[%clk
0:00:06.1]} 49... h5 {[%clk 0:00:28.3]} 50. h4 {[%clk 0:00:06]} 50... Ke5 {[%clk
0:00:27]} 51. Kh3 {[%clk 0:00:04.4]} 51... Kf5 {[%clk 0:00:26]} 52. Nc4 {[%clk
0:00:03.2]} 52... Rxf2 {[%clk 0:00:23.9]} 53. Ne3+ {[%clk 0:00:03.1]} 53... Ke4
{[%clk 0:00:22]} 54. Nc4 {[%clk 0:00:02.3]} 54... Kf3 {[%clk 0:00:20.8]} 55.
Ne5+ {[%clk 0:00:01.4]} 55... Ke2 {[%clk 0:00:19.4]} 56. Nc4 {[%clk 0:00:00.2]}
56... Kf1 {[%clk 0:00:18.6]} 0-1

[Event "Live Chess"]
[Site "Chess.com"]
[Date "2023.05.20"]
[Round "-"]
[White "AdamOwls"]
[Black "LiamBellwood"]
[Result "1-0"]
[WhiteElo "1930"]
[BlackElo "2072"]
[TimeControl "300"]
[EndTime "12:00:24 PDT"]
[Termination "AdamOwls won by resignation"]

1. e4 {[%clk 0:04:58.4]} 1... e6 {[%clk 0:04:58.6]} 2. d4 {[%clk 0:04:56.6]}
2... d5 {[%clk 0:04:58.5]} 3. e5 {[%clk 0:04:54.4]} 3... c5 {[%clk 0:04:57.5]}
4. c3 {[%clk 0:04:53.5]} 4... Nc6 {[%clk 0:04:57.4]} 5. Nf3 {[%clk 0:04:52.8]}
5... Bd7 {[%clk 0:04:56]} 6. Bd3 {[%clk 0:04:51.4]} 6... Rc8 {[%clk 0:04:54.5]}
7. O-O {[%clk 0:04:50.3]} 7... cxd4 {[%clk 0:04:54.1]} 8. Re1 {[%clk 0:04:44.6]}
8... Nge7 {[%clk 0:04:45.3]} 9. cxd4 {[%clk 0:04:42.4]} 9... Nb4 {[%clk
0:04:40.8]} 10. Bf1 {[%clk 0:04:38.1]} 10... Nc2 {[%clk 0:04:39.4]} 11. Nc3
{[%clk 0:04:26.5]} 11... Nxa1 {[%clk 0:04:35.8]} 12. Bg5 {[%clk 0:04:25.7]}
12... Nc2 {[%clk 0:04:25.7]} 13. Qxc2 {[%clk 0:04:23.8]} 13... h6 {[%clk
0:04:24.8]} 14. Bh4 {[%clk 0:04:21.9]} 14... g5 {[%clk 0:04:24.4]} 15. Bg3
{[%clk 0:04:21.1]} 15... Nf5 {[%clk 0:04:24]} 16. Qb3 {[%clk 0:04:15.2]} 16...
Qb6 {[%clk 0:04:04.1]} 17. Qxb6 {[%clk 0:03:59.4]} 17... axb6 {[%clk 0:04:04]}
18. h3 {[%clk 0:03:47]} 18... Bb4 {[%clk 0:04:00]} 19. Rc1 {[%clk 0:03:42.3]}
19... Nxg3 {[%clk 0:03:31.9]} 20. fxg3 {[%clk 0:03:40.2]} 20... Ke7 {[%clk
0:03:30.4]} 21. Bd3 {[%clk 0:03:33.1]} 21... Rc7 {[%clk 0:03:23.1]} 22. Nxd5+
{[%clk 0:03:27.4]} 22... exd5 {[%clk 0:03:20.6]} 23. Rxc7 {[%clk 0:03:25.6]}
23... Rc8 {[%clk 0:03:06.2]} 24. Rxb7 {[%clk 0:03:14.8]} 24... Rc1+ {[%clk
0:02:56.2]} 25. Kh2 {[%clk 0:03:13.1]} 25... Rd1 {[%clk 0:02:49.3]} 26. Bf5
{[%clk 0:03:11.3]} 1-0